fUST/lending_fUST_20240825
["ID","MTS","AMOUNT","RATE_DAILY","PERIOD"]
[335847720,1724531476044,-675.1,0.00015068,2]
[335847721,1724531476060,-500.0,0.00015068,2]
[335847722,1724531476069,-500.0,0.00015068,2]
[335847723,1724531476078,-500.0,0.00015068,2]
[335847724,1724531476089,-500.0,0.00015068,2]
[335847725,1724531476099,-872.09,0.00015068,2]
[335847726,1724531476109,-852.86,0.00015068,2]
[335847727,1724531476119,-500.0,0.00015068,2]
[335847728,1724531476129,-500.0,0.00015068,2]
[335847729,1724531476139,-1320.03,0.00015068,2]
[335847730,1724531476148,-2614.24,0.00015068,2]
[335847731,1724531476157,-500.0,0.00015068,2]
[335847732,1724531476167,-500.0,0.00015068,2]
[335847733,1724531476176,-1263.51,0.00015068,2]
[335847734,1724531476186,-1424.95,0.00015068,2]
[335847735,1724531476195,-2728.43,0.00015068,2]
[335847736,1724531476204,-1292.45,0.00015068,2]
[335847737,1724531476214,-507.92,0.00015068,2]
[335847738,1724531476223,-688.45,0.00015068,2]
[335847739,1724531476232,-500.0,0.00015068,2]
[335847740,1724531476242,-1410.25,0.00015068,2]
[335847741,1724531476251,-754.58,0.00015068,2]
[335847742,1724531476260,-2375.92,0.00015068,2]
[335847743,1724531476269,-500.0,0.00015068,2]
[335847744,1724531476279,-1921.55,0.00015068,2]
[335847745,1724531476288,-980.6,0.00015068,2]
[335847746,1724531476297,-500.0,0.00015068,2]
[335847747,1724531476307,-500.0,0.00015068,2]
[335847748,1724531476316,-500.0,0.00015068,2]
[335847749,1724531476325,-500.0,0.00015068,2]
[335847750,1724531476334,-999.26,0.00015068,2]
[335847751,1724531476343,-1062.09,0.00015068,2]
[335847752,1724531476353,-637.81,0.00015068,2]
[335847753,1724531476363,-1225.13,0.00015068,2]
[335847754,1724531476372,-500.0,0.00015068,2]
[335847755,1724531476380,-800.8,0.00015068,2]
[335847756,1724531476390,-500.0,0.00015068,2]
[335847757,1724531476400,-1128.59,0.00015068,2]
[335847758,1724531476409,-819.98,0.00015068,2]
[335847759,1724531476418,-500.0,0.00015068,2]
[335847760,1724531476427,-548.82,0.00015068,2]
[335847761,1724531476436,-1327.62,0.00015068,2]
[335847762,1724531476446,-500.0,0.00015068,2]
[335847763,1724531476455,-1212.1,0.00015068,2]
[335847764,1724531476464,-816.93,0.00015068,2]
[335847765,1724531476474,-1347.74,0.00015068,2]
[335847766,1724531476484,-654.44,0.00015068,2]
[335847767,1724531476493,-1183.71,0.00015068,2]
[335847768,1724531476503,-500.0,0.00015068,2]
[335847769,1724531476512,-500.0,0.00015068,2]
[335847770,1724531476521,-500.0,0.00015068,2]
[335847771,1724531476530,-500.0,0.00015068,2]
[335847772,1724531476540,-500.0,0.00015068,2]
[335847773,1724531476549,-500.0,0.00015068,2]
[335847774,1724531476560,-500.0,0.00015068,2]
[335847775,1724531476569,-1399.1,0.00015068,2]
[335847776,1724531476578,-1258.48,0.00015068,2]
[335847777,1724531476587,-908.55,0.00015068,2]
[335847778,1724531476596,-669.53,0.00015068,2]
[335847779,1724531476606,-833.72,0.00015068,2]
[335847780,1724531476615,-675.35,0.00015068,2]
[335847781,1724531476624,-500.0,0.00015068,2]
[335847782,1724531476633,-626.94,0.00015068,2]
[335847783,1724531476642,-1045.54,0.00015068,2]
[335847784,1724531476652,-707.88,0.00015068,2]
[335847785,1724531476661,-1304.4,0.00015068,2]
[335847786,1724531476671,-1138.3,0.00015068,2]
[335847787,1724531476680,-1291.63,0.00015068,2]
[335847788,1724531476689,-500.0,0.00015068,2]
[335847789,1724531476699,-622.87,0.00015068,2]
[335847790,1724531476708,-701.54,0.00015068,2]
[335847791,1724531476718,-1511.45,0.00015068,2]
[335847792,1724531476727,-1658.12,0.00015068,2]
[335847793,1724531476737,-842.01,0.00015068,2]
[335847794,1724531476746,-500.0,0.00015068,2]
[335847795,1724531476755,-500.0,0.00015068,2]
[335847796,1724531476764,-500.0,0.00015068,2]
[335847797,1724531476773,-789.09,0.00015068,2]
[335847798,1724531476782,-615.1,0.00015068,2]
[335847799,1724531476791,-697.2,0.00015068,2]
[335847800,1724531476801,-500.0,0.00015068,2]
[335847801,1724531476814,-500.0,0.00015068,2]
[335847802,1724531476823,-805.35,0.00015068,2]
[335847803,1724531476833,-1362.32,0.00015068,2]
[335847804,1724531476843,-983.04,0.00015068,2]
[335847805,1724531476852,-624.92,0.00015068,2]
[335847806,1724531476861,-500.0,0.00015068,2]
[335847807,1724531476870,-530.79,0.00015068,2]
[335847808,1724531476879,-1060.9,0.00015068,2]
[335847809,1724531476890,-500.0,0.00015068,2]
[335847810,1724531476899,-500.0,0.00015068,2]
[335847811,1724531476909,-609.17,0.00015068,2]
[335847812,1724531476919,-569.95,0.00015068,2]
[335847813,1724531476928,-1647.52,0.00015068,2]
[335847814,1724531476937,-509.84,0.00015068,2]
[335847815,1724531477086,-500.0,0.00015068,2]
[335847816,1724531477095,-2067.06,0.00015068,2]
[335847817,1724531477104,-551.95,0.00015068,2]
[335847818,1724531477114,-2076.6,0.00015068,2]
[335847819,1724531477123,-733.55,0.00015068,2]
[335847820,1724531477132,-1212.03,0.00015068,2]
[335847821,1724531477141,-824.83,0.00015068,2]
[335847822,1724531477151,-541.05,0.00015068,2]
[335847823,1724531477160,-500.0,0.00015068,2]
[335847824,1724531477170,-706.53,0.00015068,2]
[335847825,1724531477179,-500.0,0.00015068,2]
[335847826,1724531477188,-1031.72,0.00015068,2]
[335847827,1724531477198,-500.0,0.00015068,2]
[335847828,1724531477207,-500.0,0.00015068,2]
[335847829,1724531477216,-821.42,0.00015068,2]
[335847830,1724531477225,-1269.14,0.00015068,2]
[335847831,1724531477234,-500.0,0.00015068,2]
[335847832,1724531477245,-550.91,0.00015068,2]
[335847833,1724531477255,-2330.5,0.00015068,2]
[335847834,1724531477264,-564.78,0.00015068,2]
[335847835,1724531477273,-500.0,0.00015068,2]
[335847836,1724531477282,-500.0,0.00015068,2]
[335847837,1724531477291,-500.0,0.00015068,2]
[335847838,1724531477300,-536.71,0.00015068,2]
[335847839,1724531477322,-2051.66,0.00015068,2]
[335847840,1724531477331,-500.0,0.00015068,2]
[335847841,1724531477340,-500.0,0.00015068,2]
[335847842,1724531477350,-1362.21,0.00015068,2]
[335847843,1724531477359,-500.0,0.00015068,2]
[335847844,1724531477368,-5397.94,0.00015068,2]
[335847845,1724531477377,-6804.12,0.00015068,2]
[335847846,1724531477387,-648.45,0.00015068,2]
[335847847,1724531477396,-884.96,0.00015068,2]
[335847848,1724531477406,-686.18,0.00015068,2]
[335847849,1724531477415,-500.0,0.00015068,2]
[335847850,1724531477424,-1785.1,0.00015068,2]
[335847851,1724531477434,-711.95,0.00015068,2]
[335847852,1724531477443,-3273.28,0.00015068,2]
[335847853,1724531477452,-1293.47,0.00015068,2]
[335847854,1724531477461,-1164.49,0.00015068,2]
[335847855,1724531477470,-3352.92,0.00015068,2]
[335847856,1724531477479,-500.0,0.00015068,2]
[335847857,1724531477489,-747.91,0.00015068,2]
[335847858,1724531477498,-730.3,0.00015068,2]
[335847859,1724531477507,-1003.19,0.00015068,2]
[335847860,1724531477516,-1036.67,0.00015068,2]
[335847861,1724531477525,-3007.21,0.00015068,2]
[335847862,1724531477534,-598.05,0.00015068,2]
[335847863,1724531477543,-1648.7,0.00015068,2]
[335847864,1724531477552,-500.0,0.00015068,2]
[335847865,1724531477562,-2248.02,0.00015068,2]
[335847866,1724531477571,-940.59,0.00015068,2]
[335847867,1724531477580,-896.98,0.00015068,2]
[335847868,1724531477590,-762.45,0.00015068,2]
[335847869,1724531477599,-500.0,0.00015068,2]
[335847870,1724531477608,-896.49,0.00015068,2]
[335847871,1724531477618,-613.35,0.00015068,2]
[335847872,1724531477628,-500.0,0.00015068,2]
[335847873,1724531477637,-7990.85,0.00015068,2]
[335847874,1724531477646,-500.0,0.00015068,2]
[335847875,1724531477657,-3087.13,0.00015068,2]
[335847876,1724531477666,-1632.06,0.00015068,2]
[335847877,1724531477675,-500.0,0.00015068,2]
[335847878,1724531477685,-570.3,0.00015068,2]
[335847879,1724531477694,-3378.83,0.00015068,2]
[335847880,1724531477703,-963.5,0.00015068,2]
[335847881,1724531477712,-2636.69,0.00015068,2]
[335847882,1724531477721,-764.0,0.00015068,2]
[335847883,1724531477731,-500.0,0.00015068,2]
[335847884,1724531477742,-644.41,0.00015068,2]
[335847885,1724531477751,-1924.56,0.00015068,2]
[335847886,1724531477760,-5273.79,0.00015068,2]
[335847887,1724531477769,-500.0,0.00015068,2]
[335847888,1724531477779,-896.55,0.00015068,2]
[335847889,1724531477788,-10892.31,0.00015068,2]
[335847890,1724531477798,-500.0,0.00015068,2]
[335847891,1724531477809,-500.0,0.00015068,2]
[335847892,1724531477818,-3022.35,0.00015068,2]
[335847893,1724531477828,-7921.53,0.00015068,2]
[335847894,1724531477837,-663.04,0.00015068,2]
[335847895,1724531477846,-500.0,0.00015068,2]
[335847896,1724531477855,-500.0,0.00015068,2]
[335847897,1724531477866,-775.53,0.00015068,2]
[335847898,1724531477875,-1062.57,0.00015068,2]
[335847899,1724531477884,-637.96,0.00015068,2]
[335847900,1724531477893,-670.81,0.00015068,2]
[335847901,1724531477903,-500.0,0.00015068,2]
[335847902,1724531477912,-1720.57,0.00015068,2]
[335847903,1724531477924,-660.87,0.00015068,2]
[335847904,1724531477934,-500.0,0.00015068,2]
[335847905,1724531477945,-802.38,0.00015068,2]
[335847906,1724531477956,-1839.52,0.00015068,2]
[335847907,1724531477966,-22051.78,0.00015068,2]
[335847908,1724531477976,-2124.46,0.00015068,2]
[335847909,1724531477986,-823.85,0.00015068,2]
[335847910,1724531477995,-823.68,0.00015068,2]
[335847911,1724531478005,-2260.21,0.00015068,2]
[335847912,1724531478014,-968.76,0.00015068,2]
[335847913,1724531478023,-4073.78,0.00015068,2]
[335847914,1724531478032,-500.0,0.00015068,2]
[335847915,1724531478043,-500.0,0.00015068,2]
[335847916,1724531478057,-500.0,0.00015068,2]
[335847917,1724531478067,-805.16,0.00015068,2]
[335847918,1724531478076,-728.77,0.00015068,2]
[335847919,1724531478087,-500.0,0.00015068,2]
[335847920,1724531478096,-591.04,0.00015068,2]
[335847921,1724531478106,-500.0,0.00015068,2]
[335847922,1724531478115,-9393.57,0.00015068,2]
[335847923,1724531478125,-3343.01,0.00015068,2]
[335847924,1724531478135,-734.3,0.00015068,2]
[335847925,1724531478146,-1899.14,0.00015068,2]
[335847926,1724531478156,-1029.65,0.00015068,2]
[335847927,1724531478165,-721.66,0.00015068,2]
[335847928,1724531478175,-1502.18,0.00015068,2]
[335847929,1724531478184,-1262.64,0.00015068,2]
[335847930,1724531478194,-2917.34,0.00015068,2]
[335847931,1724531478203,-1438.33,0.00015068,2]
[335847932,1724531478212,-3106.9,0.00015068,2]
[335847933,1724531478221,-14408.06,0.00015068,2]
[335847934,1724531478231,-500.0,0.00015068,2]
[335847935,1724531478241,-2712.11,0.00015068,2]
[335847936,1724531478251,-2193.8,0.00015068,2]
[335847937,1724531478260,-500.0,0.00015068,2]
[335847938,1724531478272,-2815.63,0.00015068,2]
[335847939,1724531478281,-2259.87,0.00015068,2]
[335847940,1724531478291,-500.0,0.00015068,2]
[335847941,1724531478300,-627.85,0.00015068,2]
[335847942,1724531478311,-1129.92,0.00015068,2]
[335847943,1724531478323,-789.7,0.00015068,2]
[335847944,1724531478332,-500.0,0.00015068,2]
[335847945,1724531478341,-500.0,0.00015068,2]
[335847946,1724531478350,-2350.51,0.00015068,2]
[335847947,1724531478360,-500.0,0.00015068,2]
[335847948,1724531478369,-741.25,0.00015068,2]
[335847949,1724531478379,-2327.67,0.00015068,2]
[335847950,1724531478388,-2773.88,0.00015068,2]
[335847951,1724531478397,-500.0,0.00015068,2]
[335847952,1724531478407,-1842.59,0.00015068,2]
[335847953,1724531478416,-4763.79,0.00015068,2]
[335847954,1724531478426,-500.0,0.00015068,2]
[335847955,1724531478435,-1819.59,0.00015068,2]
[335847956,1724531478445,-621.55,0.00015068,2]
[335847957,1724531478454,-3461.51,0.00015068,2]
[335847958,1724531478464,-1288.14,0.00015068,2]
[335847959,1724531478473,-807.08,0.00015068,2]
[335847960,1724531478483,-679.29,0.00015068,2]
[335847961,1724531478492,-7396.52,0.00015068,2]
[335847962,1724531478501,-814.15,0.00015068,2]
[335847963,1724531478511,-500.0,0.00015068,2]
[335847964,1724531478521,-20361.09,0.00015068,2]
[335847965,1724531478530,-904.12,0.00015068,2]
[335847966,1724531478540,-2226.72,0.00015068,2]
[335847967,1724531478549,-11201.75,0.00015068,2]
[335847968,1724531478559,-10180.43,0.00015068,2]
[335847969,1724531478568,-500.0,0.00015068,2]
[335847970,1724531478578,-1538.63,0.00015068,2]
[335847971,1724531478588,-718.11,0.00015068,2]
[335847972,1724531478597,-500.0,0.00015068,2]
[335847973,1724531478606,-699.61,0.00015068,2]
[335847974,1724531478616,-500.0,0.00015068,2]
[335847975,1724531478626,-2896.04,0.00015068,2]
[335847976,1724531478635,-3039.26,0.00015068,2]
[335847977,1724531478644,-500.0,0.00015068,2]
[335847978,1724531478654,-500.0,0.00015068,2]
[335847979,1724531478663,-2034.56,0.00015068,2]
[335847980,1724531478674,-685.31,0.00015068,2]
[335847981,1724531478683,-500.0,0.00015068,2]
[335847982,1724531478693,-1232.81,0.00015068,2]
[335847983,1724531478703,-500.0,0.00015068,2]
[335847984,1724531478712,-500.0,0.00015068,2]
[335847985,1724531478723,-941.9,0.00015068,2]
[335847986,1724531478732,-1832.98,0.00015068,2]
[335847987,1724531478742,-1070.08,0.00015068,2]
[335847988,1724531478752,-11259.44,0.00015068,2]
[335847989,1724531478762,-500.0,0.00015068,2]
[335847990,1724531478771,-4136.04,0.00015068,2]
[335847991,1724531478781,-160.0,0.0001509,21]
[335847992,1724531478791,-1500.0,0.00015119,2]
[335847993,1724531478801,-160.0,0.00015131,22]
[335847994,1724531478813,-160.0,0.00015173,23]
[335847995,1724531478823,-160.0,0.00015215,24]
[335847996,1724531478833,-465.00194366,0.00015229,2]
[335847997,1724531478843,-160.0,0.00015256,25]
[335847998,1724531478852,-160.0,0.00015298,26]
[335847999,1724531478862,-160.0,0.0001534,27]
[335848000,1724531478872,-813.56,0.00015342,2]
[335848001,1724531478882,-500.0,0.00015342,2]
[335848002,1724531479009,-500.0,0.00015342,2]
[335848003,1724531479020,-734.4,0.00015342,2]
[335848004,1724531479029,-603.04,0.00015342,2]
[335848005,1724531479039,-622.05,0.00015342,2]
[335848006,1724531479051,-500.0,0.00015342,2]
[335848007,1724531479065,-500.0,0.00015342,2]
[335848008,1724531479074,-500.0,0.00015342,2]
[335848009,1724531479083,-500.0,0.00015342,2]
[335848010,1724531479093,-519.65,0.00015342,2]
[335848011,1724531479104,-500.0,0.00015342,2]
[335848012,1724531479115,-713.04,0.00015342,2]
[335848013,1724531479125,-500.0,0.00015342,2]
[335848014,1724531479136,-530.24,0.00015342,2]
[335848015,1724531479145,-500.0,0.00015342,2]
[335848016,1724531479155,-602.6,0.00015342,2]
[335848017,1724531479165,-500.0,0.00015342,2]
[335848018,1724531479174,-784.11,0.00015342,2]
[335848019,1724531479183,-500.0,0.00015342,2]
[335848020,1724531479193,-500.0,0.00015342,2]
[335848021,1724531479202,-500.0,0.00015342,2]
[335848022,1724531479212,-500.0,0.00015342,2]
[335848023,1724531479222,-500.0,0.00015342,2]
[335848024,1724531479232,-500.0,0.00015342,2]
[335848025,1724531479242,-500.0,0.00015342,2]
[335848026,1724531479252,-500.0,0.00015342,2]
[335848027,1724531479262,-500.0,0.00015342,2]
[335848028,1724531479272,-512.76976896,0.00015342,2]
[335848029,1724531479281,-500.0,0.00015342,2]
[335848030,1724531479290,-563.59,0.00015342,2]
[335848031,1724531479299,-891.68,0.00015342,2]
[335848032,1724531479311,-805.77,0.00015342,2]
[335848033,1724531479320,-500.0,0.00015342,2]
[335848034,1724531479330,-569.79,0.00015342,2]
[335848035,1724531479339,-523.9,0.00015342,2]
[335848036,1724531479349,-562.45,0.00015342,2]
[335848037,1724531479358,-962.65,0.00015342,2]
[335848038,1724531479368,-559.36,0.00015342,2]
[335848039,1724531479377,-500.0,0.00015342,2]
[335848040,1724531479387,-586.18,0.00015342,2]
[335848041,1724531479396,-807.15,0.00015342,2]
[335848042,1724531479406,-583.94,0.00015342,2]
[335848043,1724531479415,-533.88,0.00015342,2]
[335848044,1724531479425,-760.25,0.00015342,2]
[335848045,1724531479435,-583.15,0.00015342,2]
[335848046,1724531479444,-395.1644361,0.00015342,2]
[335848047,1724531479454,-863.95,0.00015342,2]
[335848048,1724531479463,-520.2,0.00015342,2]
[335848049,1724531479473,-500.0,0.00015342,2]
[335848050,1724531479482,-500.0,0.00015342,2]
[335848051,1724531479491,-500.0,0.00015342,2]
[335848052,1724531479501,-500.0,0.00015342,2]
[335848053,1724531479510,-1365.0,0.00015342,2]
[335848054,1724531479521,-850.08,0.00015342,2]
[335848055,1724531479531,-582.25934602,0.00015342,2]
[335848056,1724531479540,-752.47,0.00015342,2]
[335848057,1724531479550,-500.0,0.00015342,2]
[335848058,1724531479561,-500.0,0.00015342,2]
[335848059,1724531479570,-1109.59,0.00015342,2]
[335848060,1724531479580,-500.0,0.00015342,2]
[335848061,1724531479590,-706.93,0.00015342,2]
[335848062,1724531479599,-297.97995972,0.00015342,2]
[335848063,1724531479608,-500.0,0.00015342,2]
[335848064,1724531479618,-500.0,0.00015342,2]
[335848065,1724531479628,-823.53,0.00015342,2]
[335848066,1724531479637,-576.76,0.00015342,2]
[335848067,1724531479647,-500.0,0.00015342,2]
[335848068,1724531479656,-500.0,0.00015342,2]
[335848069,1724531479666,-526.81,0.00015342,2]
[335848070,1724531479675,-500.0,0.00015342,2]
[335848071,1724531479685,-500.0,0.00015342,2]
[335848072,1724531479695,-500.0,0.00015342,2]
[335848073,1724531479705,-500.0,0.00015342,2]
[335848074,1724531479715,-500.0,0.00015342,2]
[335848075,1724531479724,-677.32,0.00015342,2]
[335848076,1724531479734,-500.0,0.00015342,2]
[335848077,1724531479743,-479.46530466,0.00015342,2]
[335848078,1724531479752,-500.0,0.00015342,2]
[335848079,1724531479761,-500.0,0.00015342,2]
[335848080,1724531479771,-929.47,0.00015342,2]
[335848081,1724531479781,-500.0,0.00015342,2]
[335848082,1724531479792,-748.15,0.00015342,2]
[335848083,1724531479801,-534.28,0.00015342,2]
[335848084,1724531479811,-500.0,0.00015342,2]
[335848085,1724531479821,-500.0,0.00015342,2]
[335848086,1724531479831,-774.94,0.00015342,2]
[335848087,1724531479841,-1168.85,0.00015342,2]
[335848088,1724531479862,-500.0,0.00015342,2]
[335848089,1724531479879,-500.0,0.00015342,2]
[335848090,1724531479900,-500.0,0.00015342,2]
[335848091,1724531479920,-500.0,0.00015342,2]
[335848092,1724531479937,-1085.43,0.00015342,2]
[335848093,1724531479957,-1002.47,0.00015342,2]
[335848094,1724531479972,-639.11,0.00015342,2]
[335848095,1724531479991,-926.86,0.00015342,2]
[335848096,1724531480012,-500.0,0.00015342,2]
[335848097,1724531480029,-761.14,0.00015342,2]
[335848098,1724531480046,-500.0,0.00015342,2]
[335848099,1724531480064,-526.71,0.00015342,2]
[335848100,1724531480082,-744.22,0.00015342,2]
[335848101,1724531480098,-500.0,0.00015342,2]
[335848102,1724531480114,-500.0,0.00015342,2]
[335848103,1724531480130,-631.93,0.00015342,2]
[335848104,1724531480144,-2112.1,0.00015342,2]
[335848105,1724531480161,-592.66,0.00015342,2]
[335848106,1724531480175,-884.46,0.00015342,2]
[335848107,1724531480193,-500.0,0.00015342,2]
[335848108,1724531480208,-500.0,0.00015342,2]
[335848109,1724531480223,-2931.13,0.00015342,2]
[335848110,1724531480239,-1078.65,0.00015342,2]
[335848111,1724531480254,-500.0,0.00015342,2]
[335848112,1724531480269,-500.0,0.00015342,2]
[335848113,1724531480284,-500.0,0.00015342,2]
[335848114,1724531480299,-618.62,0.00015342,2]
[335848115,1724531480317,-816.32,0.00015342,2]
[335848116,1724531480331,-800.21,0.00015342,2]
[335848117,1724531480346,-781.63,0.00015342,2]
[335848118,1724531480360,-500.0,0.00015342,2]
[335848119,1724531480376,-1221.12,0.00015342,2]
[335848120,1724531480392,-646.32,0.00015342,2]
[335848121,1724531480407,-500.0,0.00015342,2]
[335848122,1724531480422,-2043.72,0.00015342,2]
[335848123,1724531480437,-500.0,0.00015342,2]
[335848124,1724531480451,-1010.23,0.00015342,2]
[335848125,1724531480465,-500.0,0.00015342,2]
[335848126,1724531480481,-766.22,0.00015342,2]
[335848127,1724531480497,-500.0,0.00015342,2]
[335848128,1724531480512,-799.71,0.00015342,2]
[335848129,1724531480528,-603.94745056,0.00015342,2]
[335848130,1724531480542,-502.44,0.00015342,2]
[335848131,1724531480558,-500.13,0.00015342,2]
[335848132,1724531480572,-578.8,0.00015342,2]
[335848133,1724531480587,-500.0,0.00015342,2]
[335848134,1724531480601,-500.0,0.00015342,2]
[335848135,1724531480616,-594.16,0.00015342,2]
[335848136,1724531480630,-1288.02,0.00015342,2]
[335848137,1724531480645,-969.48,0.00015342,2]
[335848138,1724531480659,-500.0,0.00015342,2]
[335848139,1724531480674,-1368.37,0.00015342,2]
[335848140,1724531480690,-500.0,0.00015342,2]
[335848141,1724531480705,-1302.49,0.00015342,2]
[335848142,1724531480720,-500.0,0.00015342,2]
[335848143,1724531480738,-500.0,0.00015342,2]
[335848144,1724531480754,-500.0,0.00015342,2]
[335848145,1724531480770,-500.0,0.00015342,2]
[335848146,1724531480785,-675.1,0.00015342,2]
[335848147,1724531480801,-500.0,0.00015342,2]
[335848148,1724531480818,-500.0,0.00015342,2]
[335848149,1724531480833,-500.0,0.00015342,2]
[335848150,1724531480847,-500.0,0.00015342,2]
[335848151,1724531480862,-872.09,0.00015342,2]
[335848152,1724531480877,-852.86,0.00015342,2]
[335848153,1724531480893,-500.0,0.00015342,2]
[335848154,1724531480908,-500.0,0.00015342,2]
[335848155,1724531480923,-1320.03,0.00015342,2]
[335848156,1724531480940,-2614.24,0.00015342,2]
[335848157,1724531480955,-500.0,0.00015342,2]
[335848158,1724531480970,-500.0,0.00015342,2]
[335848159,1724531480984,-1263.51,0.00015342,2]
[335848160,1724531481001,-1424.95,0.00015342,2]
[335848161,1724531481017,-2728.43,0.00015342,2]
[335848162,1724531481032,-1292.45,0.00015342,2]
[335848163,1724531481048,-507.92,0.00015342,2]
[335848164,1724531481063,-688.45,0.00015342,2]
[335848165,1724531481078,-500.0,0.00015342,2]
[335848166,1724531481095,-1410.25,0.00015342,2]
[335848167,1724531481110,-754.58,0.00015342,2]
[335848168,1724531481125,-2375.92,0.00015342,2]
[335848169,1724531481142,-500.0,0.00015342,2]
[335848170,1724531481156,-1921.55,0.00015342,2]
[335848171,1724531481171,-980.6,0.00015342,2]
[335848172,1724531481187,-500.0,0.00015342,2]
[335848173,1724531481203,-500.0,0.00015342,2]
[335848174,1724531481215,-500.0,0.00015342,2]
[335848175,1724531481396,-224.57169882,0.00015342,2]
[335848176,1724531481421,-999.26,0.00015342,2]
[335848177,1724531481430,-1062.09,0.00015342,2]
[335848178,1724531481440,-637.81,0.00015342,2]
[335848179,1724531481449,-1225.13,0.00015342,2]
[335848180,1724531481458,-500.0,0.00015342,2]
[335848181,1724531481468,-800.8,0.00015342,2]
[335848182,1724531481478,-500.0,0.00015342,2]
[335848183,1724531481487,-1128.59,0.00015342,2]
[335848184,1724531481497,-819.98,0.00015342,2]
[335848185,1724531481506,-500.0,0.00015342,2]
[335848186,1724531481516,-548.82,0.00015342,2]
[335848187,1724531481525,-500.0,0.00015342,2]
[335848188,1724531481535,-1327.62,0.00015342,2]
[335848189,1724531481545,-1212.1,0.00015342,2]
[335848190,1724531481555,-816.93,0.00015342,2]
[335848191,1724531481565,-1347.74,0.00015342,2]
[335848192,1724531481575,-654.44,0.00015342,2]
[335848193,1724531481586,-1183.71,0.00015342,2]
[335848194,1724531481596,-500.0,0.00015342,2]
[335848195,1724531481606,-500.0,0.00015342,2]
[335848196,1724531481616,-500.0,0.00015342,2]
[335848197,1724531481626,-500.0,0.00015342,2]
[335848198,1724531481635,-500.0,0.00015342,2]
[335848199,1724531481646,-500.0,0.00015342,2]
[335848200,1724531481655,-500.0,0.00015342,2]
[335848201,1724531481664,-1399.1,0.00015342,2]
[335848202,1724531481674,-1258.48,0.00015342,2]
[335848203,1724531481684,-908.55,0.00015342,2]
[335848204,1724531481693,-669.53,0.00015342,2]
[335848205,1724531481703,-833.72,0.00015342,2]
[335848206,1724531481713,-675.35,0.00015342,2]
[335848207,1724531481722,-500.0,0.00015342,2]
[335848208,1724531481732,-626.94,0.00015342,2]
[335848209,1724531481741,-1045.54,0.00015342,2]
[335848210,1724531481755,-707.88,0.00015342,2]
[335848211,1724531481766,-1304.4,0.00015342,2]
[335848212,1724531481775,-1138.3,0.00015342,2]
[335848213,1724531481785,-1291.63,0.00015342,2]
[335848214,1724531481795,-500.0,0.00015342,2]
[335848215,1724531481804,-622.87,0.00015342,2]
[335848216,1724531481821,-701.54,0.00015342,2]
[335848217,1724531481833,-1511.45,0.00015342,2]
[335848218,1724531481843,-1658.12,0.00015342,2]
[335848219,1724531481853,-842.01,0.00015342,2]